fUSD/lending_fUSD_20240115
["ID","MTS","AMOUNT","RATE_DAILY","PERIOD"]
[311718790,1705353039828,-154.69,0.00025207,2]
[311718791,1705353039837,-154.57,0.00025245,2]
[311718793,1705353039846,-2599.4,0.00025312,2]
[311718794,1705353039856,-154.69,0.00025469,2]
[311718795,1705353039865,-154.57,0.00025502,2]
[311718796,1705353039874,-205.0,0.0002557,5]
[311718797,1705353039883,-1473.75,0.00025607,2]
[311718798,1705353039892,-154.69,0.00025732,2]
[311718799,1705353039901,-154.57,0.0002576,2]
[311718800,1705353039910,-3671.0,0.000258,2]
[311718801,1705353039920,-3473.0,0.000258,2]
[311718802,1705353039929,-154.69,0.00025994,2]
[311718803,1705353039939,-5000.0,0.00026,2]
[311718804,1705353039948,-154.57,0.00026017,2]
[311718805,1705353039957,-150.0,0.00026079,2]
[311718806,1705353039966,-2599.4,0.00026201,2]
[311718807,1705353039975,-154.69,0.00026257,2]
[311718808,1705353039984,-1000.0,0.00026481,2]
[311718809,1705353039993,-154.69,0.00026519,2]
[311718810,1705353040002,-1000.0,0.00026531,2]
[311718811,1705353040011,-6300.15,0.00026575,2]
[311718812,1705353040020,-1473.75,0.00026585,2]
[311718813,1705353040030,-470.42,0.00026586,2]
[311718814,1705353040039,-155.2371007,0.00026701,2]
[311718815,1705353040049,-500.0,0.000269,9]
[311718816,1705353040058,-293.0,0.00026942,2]
[311718817,1705353040069,-164.86,0.00027,2]
[311718818,1705353040078,-415.69843276,0.00027,2]
[311718819,1705353040087,-129289.95553674,0.00027,2]
[311718820,1705353040096,-600.0,0.00027,3]
[311718821,1705353040105,-2599.4,0.0002709,2]
[311718822,1705353040114,-1813.4,0.00027123,2]
[311718823,1705353040123,-1019.54667089,0.00027343,3]
[311718824,1705353040132,-509.77333545,0.00027343,3]
[311718825,1705353040142,-250.48866677,0.00027343,3]
[311718826,1705353040151,-275.52586538,0.0002738,3]
[311718827,1705353040161,-1000.0,0.00027381,2]
[311718828,1705353040170,-530.60989809,0.00027393,3]
[311718829,1705353040180,-3608.1097954,0.00027397,2]
[311718830,1705353040189,-150.0,0.00027397,2]
[311718831,1705353040198,-3000.0,0.00027397,2]
[311718832,1705353040207,-3000.0,0.00027397,2]
[311718833,1705353040215,-3000.0,0.00027397,2]
[311718834,1705353040224,-3000.0,0.00027397,2]
[311718835,1705353040233,-3000.0,0.00027397,2]
[311718836,1705353040242,-3000.0,0.00027397,2]
[311718837,1705353040251,-3000.0,0.00027397,2]
[311718838,1705353040260,-3000.0,0.00027397,2]
[311718839,1705353040269,-3000.0,0.00027397,2]
[311718840,1705353040278,-3000.0,0.00027397,2]
[311718841,1705353040287,-3000.0,0.00027397,2]
[311718842,1705353040296,-3000.0,0.00027397,2]
[311718843,1705353040305,-3000.0,0.00027397,2]
[311718844,1705353040314,-3000.0,0.00027397,2]
[311718845,1705353040325,-3000.0,0.00027397,2]
[311718846,1705353040334,-3000.0,0.00027397,2]
[311718847,1705353040343,-3000.0,0.00027397,2]
[311718848,1705353040352,-3000.0,0.00027397,2]
[311718849,1705353040361,-2191.79643083,0.00027397,2]
[311718850,1705353040374,-808.20356917,0.00027397,2]
[311718851,1705353040383,-3000.0,0.00027397,2]
[311718852,1705353040393,-155.0,0.00027397,2]
[311718853,1705353040403,-33599.16,0.00027397,2]
[311718854,1705353040413,-23382.98,0.00027397,2]
[311718855,1705353040423,-250.0,0.00027397,2]
[311718856,1705353040433,-2500.0,0.00027397,4]
[311718857,1705353040443,-8195.43,0.00027397,2]
[311718858,1705353040454,-5689.32768707,0.000274,2]
[311718859,1705353040465,-507.65174878,0.000274,2]
[311718860,1705353040476,-3392.77,0.000274,2]
[311718861,1705353040487,-3392.77,0.000274,2]
[311718862,1705353040497,-3392.77,0.000274,2]
[311718864,1705353040507,-3392.77,0.000274,2]
[311718866,1705353040517,-3392.77,0.000274,2]
[311718868,1705353040527,-367.90867965,0.00027406,5]
[311718869,1705353040537,-1261.17944145,0.00027432,2]
[311718871,1705353040547,-2051.0,0.00027474,5]
[311718873,1705353040557,-205.0,0.00027482,8]
[311718874,1705353040566,-4925.82768456,0.000275,2]
[311718875,1705353040580,-8195.43,0.00027556,2]
[311718876,1705353040590,-1473.75,0.00027564,2]
[311718878,1705353040599,-3126.94221003,0.00027714,2]
[311718880,1705353040612,-5068.48778997,0.00027714,2]
[311718882,1705353040621,-1261.17944145,0.00027746,2]
[311718883,1705353040630,-8195.43,0.00027872,2]
[311718884,1705353040640,-1000.0,0.00027921,2]
[311718885,1705353040650,-150.0,0.00027945,2]
[311718886,1705353040659,-2599.4,0.00027979,2]
[311718887,1705353040669,-202.92894676,0.00028,2]
[311718888,1705353040679,-688.02629954,0.00028,2]
[311718889,1705353040688,-3000.0,0.00028,2]
[311718890,1705353040697,-200.0,0.00028,2]
[311718891,1705353040707,-3000.0,0.0002801,2]
[311718892,1705353040716,-3000.0,0.0002802,2]
[311718893,1705353040725,-3000.0,0.0002803,2]
[311718894,1705353040734,-8195.43,0.0002803,2]
[311718895,1705353040744,-5648.959174,0.0002804,2]
[311718896,1705353040753,-1261.17944145,0.00028048,2]
[311718897,1705353040762,-1495.13833716,0.00028145,2]
[311718898,1705353040771,-8195.43,0.00028189,2]
[311718899,1705353040780,-1495.13833716,0.0002825,2]
[311718900,1705353040790,-155.49,0.00028327,2]
[311718901,1705353040800,-8195.43,0.00028347,2]
[311718902,1705353040809,-1261.17944145,0.00028435,2]
[311718903,1705353040821,-374.58858088,0.00028492,2]
[311718904,1705353040830,-150.41771428,0.00028493,2]
[311718905,1705353040839,-155.49,0.00028494,2]
[311718906,1705353040848,-3675.18653702,0.00028499,4]
[311718907,1705353040858,-8195.43,0.00028505,2]
[311718908,1705353040867,-1473.75,0.00028542,2]
[311718909,1705353040876,-1495.13833716,0.00028561,2]
[311718910,1705353040886,-167.0,0.00028613,2]
[311718911,1705353040895,-155.49,0.00028661,2]
[311718912,1705353040904,-8195.43,0.00028664,2]
[311718913,1705353040913,-1261.17944145,0.00028693,2]
[311718914,1705353040922,-1000.0,0.00028767,2]
[311718915,1705353040931,-1000.0,0.00028767,2]
[311718916,1705353040941,-801.42,0.00028767,2]
[311718917,1705353040950,-7999.99,0.000288,6]
[311718918,1705353040959,-1021.0,0.000288,2]
[311718919,1705353040968,-385.69264923,0.00028821,2]
[311718920,1705353040978,-1670.77159327,0.00028821,2]
[311718921,1705353040987,-8195.43,0.00028822,2]
[311718922,1705353040997,-200.0,0.00028822,2]
[311718923,1705353041006,-5186.35262149,0.00028822,2]
[311718924,1705353041016,-155.0,0.00028822,2]
[311718925,1705353041025,-10098.3604955,0.00028822,2]
[311718926,1705353041038,-4040.2177478,0.00028822,2]
[311718927,1705353041047,-862.32396999,0.00028822,2]
[311718929,1705353042207,-757.91521654,0.000274,2]
[311718933,1705353043344,-2634.85478346,0.000274,2]
[311718934,1705353043354,-3392.77,0.000274,2]
[311718935,1705353043364,-3392.77,0.000274,2]
[311718936,1705353043374,-3392.77,0.000274,2]
[311718937,1705353043384,-3392.77,0.000274,2]
[311718938,1705353043394,-1035.42876508,0.00028822,2]
[311718939,1705353043404,-1104.86730331,0.00028822,2]
[311718940,1705353043413,-282.90032781,0.00028822,2]
[311718941,1705353043423,-169.10360193,0.00028822,2]
[311718942,1705353043433,-4387.40271906,0.00028822,2]
[311718943,1705353043442,-2000.0,0.00028822,2]
[311718944,1705353043452,-200.0,0.00028822,2]
[311718945,1705353043462,-2000.0,0.00028822,2]
[311718946,1705353043472,-155.49,0.00028827,2]
[311718947,1705353043482,-470.42,0.0002885,2]
[311718948,1705353043494,-2599.4,0.00028869,2]
[311718949,1705353043505,-2051.0,0.0002892,5]
[311718950,1705353043515,-155.49,0.00028994,2]
[311718951,1705353043524,-155.33306015,0.00029,2]
[311718952,1705353043535,-650.0,0.00029,3]
[311718953,1705353043545,-4000.0,0.00029,2]
[311718954,1705353043555,-1261.17944145,0.00029044,2]
[311718955,1705353043566,-1495.13833716,0.00029089,2]
[311718957,1705353043577,-200.0,0.0002911,2]
[311718959,1705353043587,-155.49,0.0002916,2]
[311718961,1705353043596,-9124.1401041,0.00029189,2]
[311718963,1705353043605,-155.0,0.000292,2]
[311718965,1705353043615,-167.0,0.00029223,2]
[311718966,1705353043625,-1261.17944145,0.00029325,2]
[311718967,1705353043635,-155.49,0.00029327,2]
[311718968,1705353043645,-1495.13833716,0.00029333,2]
[311718969,1705353043655,-205.0,0.00029395,11]
[311718970,1705353043666,-200.0,0.00029401,2]
[311718971,1705353043675,-1000.0,0.00029423,2]
[311718972,1705353043685,-155.49,0.00029494,2]
[311718973,1705353043695,-188.31609233,0.000295,3]
[311718974,1705353043705,-460132.22335809,0.000295,3]
[311718996,1705353046303,-1219.9999296,0.00027399,2]
[311719003,1705353046361,-456.002,0.00027399,2]
[311719014,1705353046456,-2489.74627972,0.00027399,2]
[311719017,1705353046468,-436.34852955,0.00027399,2]
[311719027,1705353232434,45.89608455,0.00021798,2]
[311719028,1705353232456,150.0,0.00021798,2]
[311719029,1705353232479,150.0,0.00021798,2]
[311719030,1705353232500,6.20391545,0.00021798,2]
[311719031,1705353280324,249.08654529,0.00022075,2]
[311719032,1705353280347,176.98345471,0.00022075,2]
[311719033,1705353597926,101.42654529,0.00022063,2]
[311719034,1705353597946,148.57345471,0.00022063,2]
[311719035,1705353667521,1.42654529,0.00022042,2]
[311719036,1705353667541,150.0,0.00022042,2]
[311719037,1705353667561,197.75791,0.00022042,2]
[311719038,1705353667582,155.42,0.00022042,2]
[311719039,1705353667607,1495.39554471,0.00022042,2]
[311719040,1705353719273,424.06,0.00020211,2]
[311719042,1705353753633,436.24,0.00021984,2]
[311719043,1705353839430,10000.0,0.00021921,2]
[311719044,1705353871020,1368.95,0.00021904,2]
[311719045,1705353878502,164.96,0.00021805,2]
[311719046,1705353896100,23900.0,0.00021851,2]
[311719047,1705353916508,1220.67,0.00021851,2]
[311719048,1705353965257,200.0,0.00021851,2]
[311719049,1705353990828,1000.0,0.00021976,2]
[311719050,1705354028809,167.94,0.00022074,2]
[311719051,1705354085520,404.62,0.0002192,2]
[311719052,1705354138121,538.92,0.00021995,2]
[311719061,1705354231359,-858.0126,0.00022104,4]
[311719062,1705354231459,-2817.17393702,0.00022104,4]
[311719063,1705354231468,-1195.12,0.00022105,2]
[311719064,1705354231478,-157.15,0.00022214,2]
[311719065,1705354231487,-2642.323,0.00022423,2]
[311719066,1705354231496,-424.06,0.00022475,2]
[311719067,1705354231505,-150.0,0.00022568,2]
[311719068,1705354231514,-1448.14965443,0.00022568,2]
[311719069,1705354231524,-481.35993134,0.00022569,2]
[311719070,1705354231533,-499.99,0.00022569,2]
[311719071,1705354231542,-282.76,0.00022569,2]
[311719072,1705354231552,-323.95457532,0.00022696,2]
[311719073,1705354231561,-196.68987756,0.00022697,2]
[311719074,1705354231570,-956.48634698,0.00022697,2]
[311719075,1705354231579,-165.92298532,0.00022697,2]
[311719076,1705354231589,-193.74997088,0.00022697,2]
[311719077,1705354231598,-181.29542299,0.00022697,4]
[311719078,1705354231607,-2226.26111478,0.00022697,2]
[311719079,1705354231686,-751.12219568,0.00022697,2]
[311719080,1705354231726,-512.69287336,0.00022697,2]
[311719097,1705354238208,-561.2699,0.00022697,2]
[311719098,1705354238220,-333.4011,0.00022697,2]
[311719099,1705354238231,-1238.59038104,0.00022697,2]
[311719100,1705354238240,-191.20978631,0.00022697,2]
[311719101,1705354238267,-88.12531369,0.00022697,2]
[311719102,1705354238277,-160.02216349,0.00022698,2]
[311719103,1705354238286,-262.00595671,0.00022794,2]
[311719104,1705354238295,-227.54635783,0.00022794,2]
[311719105,1705354238304,-435.21804576,0.00022794,2]
[311719106,1705354238314,-1000.0,0.00022795,2]
[311719107,1705354238323,-222.35781449,0.00022795,2]
[311719108,1705354238332,-615.8279265,0.00022795,2]
[311719109,1705354238341,-1266.29642153,0.00022796,2]
[311719110,1705354238461,-1206.52229299,0.00022796,2]
[311719111,1705354238473,-30254.75044355,0.00022796,2]
[311719112,1705354238482,-385.69264923,0.00022796,2]
[311719113,1705354238491,-1670.77159327,0.00022796,2]
[311719114,1705354238499,-374.58858088,0.00022796,2]
[311719115,1705354238509,-300.45949591,0.00022796,2]
[311719116,1705354238522,-12188.23973841,0.00022797,2]
[311719117,1705354238531,-71484.13851946,0.00022797,2]
[311719118,1705354238543,-130281.94517922,0.00022797,2]
[311719119,1705354238562,-825.57805478,0.00022797,2]
[311719121,1705354240595,-316.10024639,0.00022797,2]
[311719149,1705354242526,-3567.06786537,0.00022797,2]
[311719150,1705354242538,-47776.63291992,0.00022797,2]
[311719171,1705354245546,-716.32220065,0.00022796,4]
[311719173,1705354245558,-5.31032598,0.00022796,4]
[311719175,1705354245568,-2007.91950095,0.00022797,2]
[311719178,1705354245579,-11973.65554826,0.00022797,2]
[311719180,1705354245604,-349.52660475,0.00022797,2]
[311719181,1705354245664,-71826.0721722,0.00022797,2]
[311719182,1705354245723,-4587.7,0.00022797,2]
[311719190,1705354455897,352.26,0.00021798,2]
[311719254,1705354811628,381.65,0.00020391,2]
[311719259,1705354972746,1203.54837215,0.00021816,2]
[311719260,1705354973037,1203.54837215,0.00021951,2]
[311719272,1705355068863,163.05,0.00022036,2]
[311719273,1705355076229,1000.0,0.00021882,2]
[311719276,1705355107927,1203.54837215,0.00022024,2]
[311719279,1705355153319,217.04,0.0002197,2]
[311719289,1705355277735,257.28,0.00021769,2]
[311719294,1705355325429,269.46,0.00021905,2]
[311719296,1705355354392,362.56,0.00020033,2]
[311719317,1705355431537,-160.0221635,0.00022168,2]
[311719318,1705355431547,-217.04,0.00022187,2]
[311719319,1705355431556,-51.3603005,0.00022187,2]
[311719320,1705355431568,-2232.51996265,0.00022187,2]
[311719321,1705355431599,-3204.90558587,0.00022187,2]
[311719322,1705355431662,-333114.10527198,0.00022187,2]
[311719323,1705355431671,-7371.33313553,0.00022268,2]
[311719324,1705355431680,-362.56,0.00022297,2]
[311719325,1705355431690,-1203.54837215,0.00022362,2]
[311719326,1705355431699,-150.0,0.00022375,2]
[311719327,1705355431709,-1296.05,0.00022376,2]
[311719328,1705355431718,-217.04,0.00022405,2]
[311719329,1705355431727,-3624.2701,0.00022497,2]
[311719330,1705355431737,-611.5888,0.00022497,2]
[311719331,1705355431747,-1203.54837215,0.00022575,2]
[311719332,1705355431757,-298.44,0.00022575,2]
[311719333,1705355431766,-150.0,0.00022575,2]
[311719334,1705355431775,-1000.0,0.00022596,2]
[311719335,1705355431784,-69954.8496,0.00022597,2]
[311719336,1705355431794,-1000.0,0.00022597,2]
[311719337,1705355431803,-122841.2666,0.00022597,2]
[311719338,1705355431812,-999.99,0.00022597,2]
[311719339,1705355431822,-1004.63575373,0.00022597,2]
[311719340,1705355431831,-158.48766211,0.00022598,2]
[311719341,1705355431840,-217.04,0.00022622,2]
[311719343,1705355431850,-187.38265917,0.00022695,2]
[311719345,1705355431859,-399.61313833,0.00022695,2]
[311719347,1705355431868,-196.2835416,0.00022695,2]
[311719349,1705355431878,-499.99,0.00022695,2]
[311719351,1705355431886,-11496.67531732,0.00022696,2]
[311719353,1705355431896,-397984.35894198,0.00022697,2]
[311719355,1705355431908,-24022.24524815,0.00022697,2]
[311719358,1705355431924,-365.30441413,0.00022697,2]
[311719360,1705355431936,-81405.30999996,0.00022697,2]
[311719391,1705355437759,-785.2873475,0.00022697,2]
[311719392,1705355437770,-1317.0138514,0.00022697,2]
[311719393,1705355437790,-250.82631692,0.00022697,2]
[311719394,1705355437801,-10002.05096198,0.00022697,2]
[311719395,1705355437835,-479.52546606,0.00022697,2]
[311719396,1705355437846,-681.93624582,0.00022697,2]
[311719621,1705355440053,-2683.56242988,0.00022697,2]
[311719624,1705355440065,-580.67135533,0.00022697,2]
[311719636,1705355440840,13476.19562667,0.00022087,2]
[311719637,1705355440866,86523.80437333,0.00022087,2]
[311719651,1705355442600,-427.10354647,0.00022697,2]
[311719652,1705355442612,-2261.39984131,0.00022697,2]
[311719653,1705355442624,-474.17972,0.00022697,2]
[311719654,1705355442672,-1348.81437154,0.00022697,2]
[311719655,1705355442684,-1045.08887737,0.00022697,2]
[311719656,1705355442862,-835.04991627,0.00022697,2]
[311719662,1705355445623,-203.87686547,0.00022597,2]
[311719663,1705355445632,-448.88147705,0.00022697,2]
[311719664,1705355445692,-1235.66885474,0.00022697,2]
[311719666,1705355445811,-5174.16358166,0.00022697,2]
[311719667,1705355445822,-1993.67337785,0.00022697,2]
[311719668,1705355445834,-10904.83779935,0.00022697,2]
[311719675,1705355471575,2500.0,0.00022087,2]
[311719679,1705355476012,2639.2031,0.00022087,2]
[311719686,1705355480216,1526.26128218,0.00020425,2]
[311719692,1705355493068,319.64587226,0.00022,2]
[311719693,1705355498226,1249.13044724,0.00020425,2]
[311719695,1705355514564,2521.02199253,6.94e-05,2]
[311719696,1705355562803,8005.6872,0.00022087,2]
[311719697,1705355591103,205.0,9.8e-05,2]
[311719698,1705355594581,4914.01821414,0.0001305,2]
[311719699,1705355595114,238.64037763,0.000101,2]
[311719700,1705355620852,1484.6570128,0.0002,2]
[311719701,1705355657623,5189.33993553,0.0002,2]
[311719703,1705355675613,3081.14286366,0.0002,2]
[311719704,1705355698202,154.54,0.0002195,2]
[311719705,1705355713972,161.12,0.00021769,10]
[311719706,1705355814382,412.14,0.00021776,2]
[311719707,1705355946838,344.63,0.00019726,2]
[311719708,1705355946912,344.63,0.0002199,2]
[311719709,1705355956019,800.0,0.00021643,2]
[311719710,1705356020027,1294.46,0.00021622,2]
[311719713,1705356078181,155.47,0.00021759,2]
[311719714,1705356103370,1495.13833716,0.0002202,2]
[311719715,1705356123526,162.4,0.00021792,2]
[311719716,1705356140331,738.54219566,0.000221,2]
[311719719,1705356243965,202.0,0.00021308,2]
[311719729,1705356316392,344.78,0.00021643,2]
[311719743,1705356406455,327.57,0.00019612,2]
[311719744,1705356406684,327.57,0.00021876,2]
[311719745,1705356424651,360.0,0.00021558,2]
[311719746,1705356431063,1241.4,0.00021561,2]
[311719775,1705356604664,202.0,0.00021741,2]
[311719806,1705356632985,-323.26186872,0.00022132,2]
[311719807,1705356632997,-76.73813128,0.00022132,2]
[311719808,1705356633006,-154.54,0.00022133,2]
[311719809,1705356633015,-180.09552366,0.00022156,2]
[311719810,1705356633025,-145.91175878,0.00022174,2]
[311719811,1705356633044,-10.79824122,0.00022174,2]
[311719812,1705356633053,-519.46717345,0.00022239,2]
[311719813,1705356633064,-1878.12056556,0.00022239,2]
[311719814,1705356633073,-9002.99643522,0.00022246,2]
[311719815,1705356633084,-724.46528042,0.00022246,2]
[311719816,1705356633114,-4283.55,0.00022246,2]
[311719817,1705356633126,-280.378098,0.00022246,2]
[311719818,1705356633138,-1442.12271634,0.00022246,2]
[311719819,1705356633167,-1952.9973843,0.00022246,2]
[311719820,1705356633178,-426.947536,0.00022246,2]
[311719821,1705356633190,-770.61,0.00022246,2]
[311719822,1705356633203,-255.97559429,0.00022246,2]
[311719823,1705356633216,-1110.80224,0.00022246,2]
[311719824,1705356633242,-400.08481297,0.00022246,2]
[311719825,1705356637380,150.0,0.000217,2]
[311719840,1705356637728,-3681.17247904,0.00022246,2]
[311719842,1705356637738,-150.0,0.00022248,2]
[311719844,1705356637747,-449.02752096,0.00022255,2]
[311719847,1705356637789,-550.97247904,0.00022255,2]
[311719848,1705356637798,-187.56971662,0.00022268,2]
[311719850,1705356638141,-312.42028338,0.00022268,2]
[311719852,1705356638151,-10240.26127827,0.00022284,2]
[311719854,1705356638161,-2611.2,0.00022284,2]
[311719856,1705356638170,-3335.90360751,0.00022285,2]
[311719858,1705356638179,-154.54,0.00022316,2]
[311719860,1705356638189,-180.09552366,0.00022342,2]
[311719862,1705356638198,-1495.13833717,0.00022395,2]
[311719864,1705356638209,-1203.54837216,0.00022462,2]
[311719866,1705356638219,-1500.0,0.00022477,2]
[311719868,1705356638227,-13989.9854,0.00022496,2]
[311719870,1705356638237,-154.54,0.00022499,2]
[311719872,1705356638247,-300.0,0.00022523,2]
[311719874,1705356638256,-150.0,0.00022525,2]
[311719876,1705356638266,-150.0,0.00022526,2]
[311719878,1705356638275,-180.09552366,0.00022528,2]
[311719879,1705356638284,-1500.0,0.00022529,2]
[311719882,1705356638294,-150.0,0.00022529,2]
[311719883,1705356638304,-150.0,0.00022529,2]
[311719885,1705356638314,-150.0,0.00022534,2]
[311719887,1705356638323,-150.0,0.00022537,2]
[311719890,1705356638333,-150.0,0.00022537,2]
[311719892,1705356638343,-1241.4,0.00022539,2]
[311719895,1705356638352,-150.0,0.0002254,2]
[311719898,1705356638361,-1500.0,0.00022541,2]
[311719901,1705356638372,-150.0,0.00022541,2]
[311719904,1705356638381,-150.0,0.00022542,2]
[311719907,1705356638391,-150.0,0.00022542,2]
[311719908,1705356638400,-150.0,0.00022542,2]
[311719910,1705356638409,-150.0,0.00022542,2]
[311719912,1705356638419,-300.0,0.0002255,2]
[311719914,1705356638428,-150.0,0.00022556,2]
[311719916,1705356638438,-150.0,0.00022562,2]
[311719918,1705356638447,-150.0,0.00022564,2]
[311719920,1705356638456,-150.0,0.00022564,2]
[311719922,1705356638465,-300.0,0.00022564,2]
[311719924,1705356638475,-150.0,0.00022568,2]
[311719926,1705356638484,-150.0,0.00022568,2]
[311719928,1705356638493,-1500.0,0.0002257,2]
[311719930,1705356638503,-150.0,0.00022571,2]
[311719932,1705356638512,-150.0,0.00022575,2]
[311719934,1705356638522,-150.0,0.00022575,2]
[311719936,1705356638531,-150.0,0.00022575,2]
[311719938,1705356638541,-150.0,0.00022578,2]
[311719940,1705356638550,-300.0,0.00022582,2]
[311719942,1705356638560,-150.0,0.00022585,2]
[311719945,1705356638570,-150.0,0.0002259,2]
[311719947,1705356638579,-150.0,0.00022592,2]
[311719948,1705356638589,-1737.59447745,0.00022595,2]
[311719950,1705356638598,-242.04927241,0.00022595,2]
[311719953,1705356638609,-417.33036051,0.00022595,2]
[311719954,1705356638619,-214.68433888,0.00022595,2]
[311719956,1705356638629,-1035.7344448,0.00022595,2]
[311719959,1705356638639,-2133.7271505,0.00022595,2]
[311719960,1705356638648,-163.88168135,0.00022595,2]
[311719962,1705356638657,-1306.17308962,0.00022596,2]
[311719965,1705356638667,-155.0,0.00022596,2]
[311719967,1705356638677,-38989.92626063,0.00022596,2]
[311719969,1705356638687,-9170.5627,0.00022597,2]
[311719971,1705356638696,-64205.568,0.00022597,2]
[311719973,1705356638706,-1000.0,0.00022597,2]
[311719974,1705356638716,-3050.4491,0.00022597,2]
[311719977,1705356638725,-150.0,0.00022597,2]
[311719979,1705356638734,-150.0,0.00022598,2]
[311719981,1705356638743,-150.0,0.00022598,2]
[311719983,1705356638753,-461.84463717,0.00022598,2]
[311719985,1705356638762,-150.0,0.00022601,2]
[311719987,1705356638771,-150.0,0.00022601,2]
[311719988,1705356638782,-1500.0,0.00022604,2]
[311719990,1705356638791,-150.0,0.00022604,2]
[311719992,1705356638801,-150.0,0.00022604,2]
[311719994,1705356638810,-150.0,0.00022606,2]
[311719996,1705356638821,-150.0,0.00022606,2]
[311719999,1705356638831,-150.0,0.00022607,2]
[311720001,1705356638840,-150.0,0.00022608,2]
[311720003,1705356638850,-150.0,0.00022608,2]
[311720004,1705356638859,-150.0,0.00022614,2]
[311720007,1705356638869,-150.0,0.00022616,2]
[311720009,1705356638878,-150.0,0.0002262,2]
[311720010,1705356638887,-150.0,0.00022622,2]
[311720012,1705356638896,-150.0,0.00022623,2]
[311720014,1705356638905,-150.0,0.00022624,2]
[311720017,1705356638915,-150.0,0.00022626,2]
[311720019,1705356638925,-150.0,0.00022629,2]
[311720020,1705356638934,-1500.0,0.00022631,2]
[311720022,1705356638944,-150.0,0.00022631,2]
[311720025,1705356638953,-303.44227461,0.00022636,2]
[311720026,1705356638963,-150.0,0.00022636,2]
[311720028,1705356638972,-1500.0,0.00022638,2]
[311720030,1705356638981,-461.84463716,0.00022641,2]
[311720032,1705356638991,-150.0,0.00022643,2]
[311720035,1705356639001,-150.0,0.00022647,2]
[311720036,1705356639010,-150.0,0.00022648,2]
[311720038,1705356639020,-300.0,0.00022649,2]
[311720041,1705356639030,-1500.0,0.00022649,2]
[311720043,1705356639039,-1500.0,0.00022649,2]
[311720044,1705356639049,-150.0,0.00022649,2]
[311720047,1705356639058,-150.0,0.00022651,2]
[311720049,1705356639068,-150.0,0.00022652,2]
[311720051,1705356639078,-150.0,0.00022653,2]
[311720053,1705356639087,-150.0,0.00022654,2]
[311720055,1705356639097,-150.0,0.00022654,2]
[311720057,1705356639106,-150.0,0.00022655,2]
[311720059,1705356639116,-150.0,0.0002266,2]
[311720061,1705356639125,-150.0,0.00022662,2]
[311720063,1705356639134,-150.0,0.00022662,2]
[311720065,1705356639143,-150.0,0.00022667,2]
[311720067,1705356639153,-150.0,0.00022672,2]
[311720069,1705356639162,-150.0,0.00022672,2]
[311720071,1705356639171,-150.0,0.00022673,2]
[311720073,1705356639180,-150.0,0.00022674,2]
[311720075,1705356639193,-150.0,0.00022675,2]
[311720077,1705356639202,-300.0,0.00022677,2]
[311720079,1705356639212,-150.0,0.00022679,2]
[311720081,1705356639222,-150.0,0.00022681,2]
[311720083,1705356639231,-154.54,0.00022682,2]
[311720085,1705356639240,-150.0,0.00022684,2]
[311720087,1705356639249,-461.84463716,0.00022684,2]
[311720089,1705356639258,-1500.0,0.00022685,2]
[311720091,1705356639268,-242.92012067,0.00022688,2]
[311720093,1705356639278,-1500.0,0.0002269,2]
[311720095,1705356639287,-150.0,0.0002269,2]
[311720097,1705356639297,-300.0,0.00022691,2]
[311720099,1705356639307,-150.0,0.00022692,2]
[311720101,1705356639316,-196.21358155,0.00022695,2]
[311720103,1705356639325,-479.48754754,0.00022695,2]
[311720105,1705356639334,-245.18505928,0.00022695,2]
[311720107,1705356639344,-1250.39470875,0.00022695,2]
[311720109,1705356639354,-306.17069153,0.00022695,2]